[Event "37th ECCC 2022"]
[Site "Mayrhofen"]
[Date "2022.10.06"]
[Round "4.29"]
[White "Van Wely, Loek"]
[Black "Czebe, Attila"]
[Result "1-0"]
[ECO "E00"]
[WhiteElo "2629"]
[BlackElo "2366"]
[Annotator "TA"]
[PlyCount "145"]
[EventDate "2022.10.03"]
[EventType "team-tourn"]
[EventCountry "AUT"]
[SourceTitle "playchess.com"]
[Source "ChessBase"]
[SourceQuality "1"]
[TimeControl "40/5400+30:1800+30"]

{[%evp 17,145,45,43,34,61,60,62,67,67,71,129,125,118,114,144,141,147,131,131,140,133,143,148,147,157,124,157,155,164,141,170,156,177,176,171,175,181,162,199,181,167,117,117,117,117,117,117,117,117,117,117,113,113,107,112,97,100,92,107,75,77,77,77,77,77,80,90,64,107,65,65,66,66,62,107,107,107,107,107,62,74,43,107,51,107,25,40,18,18,18,18,12,18,18,18,12,114,42,112,18,200,90,90,145,318,316,270,18,18,18,28,35,144,31,179,109,145,18,18,0,0,0,0,0,0,0,0,0,2550,2141]} 1. d4 {[%emt 0:00:06]} e6 {[%emt 0:01:53]} 2. c4 {[%emt 0:00:25]} Bb4+ {[%emt 0:01:28]} 3. Bd2 {[%emt 0:00:08]} Bxd2+ {[%emt 0:00:20]} 4. Qxd2 {[%emt 0:00:08]} Nf6 {[%emt 0:00:03]} 5. Nf3 {[%emt 0:04:37]} O-O {[%emt 0:00:11]} 6. g3 {[%emt 0:00:53]} d6 {[%emt 0:10:01]} 7. Bg2 {[%emt 0:01:16]} Nc6 {[%emt 0:00:11]} 8. Nc3 {[%emt 0:02:55]} e5 {[%emt 0:00:19]} 9. O-O {[%emt 0:01:28]} Bg4 {[%emt 0:08:04]} 10. e3 {[%emt 0:01:25] [#] E11: Bogo-Indian.} exd4 $146 {[%emt 0:07:11]} ({Predecessor:} 10... h6 11. h3 Bd7 12. e4 Nh7 13. d5 Ne7 14. Ne1 f5 15. Nd3 Ng5 16. exf5 Bxf5 17. h4 Nh7 {0-1 (37) Kazakovskiy,V (2473)-Meier,G (2628) Tornelo INT 2020}) 11. Nxd4 {[%emt 0:05:37]} Qd7 {[%emt 0:00:28]} 12. Nd5 {[%emt 0:12:19] White is slightly better.} Nxd5 {[%emt 0:00:04]} 13. cxd5 {[%emt 0:00:09]} Ne7 {[%emt 0:00:03]} (13... Nxd4 $142 14. Qxd4 Rfc8) 14. Rfc1 $16 {[%emt 0:02:13]} Rac8 {[%emt 0:00:07]} 15. Qb4 {[%emt 0:07:32]} Rb8 {[%emt 0:13:00]} 16. Qa5 {[%emt 0:07:12]} Rfc8 {[%emt 0:00:02]} 17. Qxa7 {[%emt 0:01:48] White is much more active. The black rooks are badly placed.} c5 {[%emt 0:00:43]} 18. dxc6 $1 {[%emt 0:02:33]} bxc6 {[%emt 0:00:04]} 19. Qxd7 {[%emt 0:01:11]} Bxd7 {[%emt 0:00:03]} 20. Rc2 {[%emt 0:04:23]} Rb6 {[%emt 0:00:04]} 21. Rd1 {[%emt 0:02:44]} Ra6 {[%emt 0:11:21]} 22. b3 {[%emt 0:03:18]} Rca8 {[%emt 0:01:21]} 23. Rdd2 {[%emt 0:03:33]} Rb8 {[%emt 0:09:46]} 24. Ne2 {[%emt 0:03:55]} c5 {[%emt 0:05:36]} 25. Nc3 {[%emt 0:01:38]} Be6 {[%emt 0:03:34]} 26. Bf1 {[%emt 0:04:04]} Rc6 {[%emt 0:00:05]} 27. Rc1 {[%emt 0:04:33]} h6 {[%emt 0:02:54]} 28. Bg2 {[%emt 0:10:15]} Ra6 {[%emt 0:03:08]} 29. Rcd1 {[%emt 0:08:22]} (29. e4 $18) 29... d5 {[%emt 0:02:02]} 30. Nxd5 {[%emt 0:00:22]} Bxd5 {[%emt 0:00:37]} 31. Bxd5 {[%emt 0:00:05]} Nxd5 {[%emt 0:00:03]} 32. Rxd5 {[%emt 0:00:06] aiming for Rd8+.} Rxa2 {[%emt 0:00:03]} 33. Rxc5 {[%emt 0:00:09][%mdl 4096] Endgame KRR-KRR} Rb2 {[%emt 0:02:53]} 34. Rd7 {[%emt 0:00:11]} R2xb3 {[%emt 0:00:04]} 35. Rcc7 {[%emt 0:00:11]} Rf8 {[%emt 0:00:05]} 36. g4 {[%emt 0:00:16]} Rb6 {[%emt 0:00:04]} 37. h3 {[%emt 0:02:10][%cal Bh2h3,Bh3h4][%mdl 32]} Rf6 {[%emt 0:00:19]} 38. f4 {[%emt 0:01:27]} Re6 {[%emt 0:08:00]} 39. Kf2 {[%emt 0:00:19]} g6 {[%emt 0:00:14]} 40. Ra7 {[%emt 0:01:23]} Re4 {[%emt 0:00:19]} 41. Rdc7 {[%emt 0:30:57]} Re6 {[%emt 0:30:07]} 42. h4 {[%emt 0:00:00]} Re4 {[%emt 0:00:00]} 43. Rc5 {[%emt 0:00:00]} Rfe8 {[%emt 0:00:00]} 44. Ra3 {[%emt 0:00:00]} Rb4 {[%emt 0:00:00]} 45. Kf3 {[%emt 0:00:00]} Re7 {[%emt 0:00:00]} 46. h5 {[%emt 0:00:00]} gxh5 {[%emt 0:00:00]} 47. Rxh5 {[%emt 0:00:00]} Kg7 {[%emt 0:00:00]} 48. Rd5 {[%emt 0:00:00]} Rb1 {[%emt 0:00:00]} 49. Rd6 {[%emt 0:00:00]} Rc7 {[%emt 0:00:00]} (49... Rf1+ $14 50. Kg2 Re1) 50. Ra8 {[%emt 0:00:00]} (50. Rd8 $16) 50... Rf1+ {[%emt 0:00:00]} (50... Rh1 $1 $14) 51. Kg2 {[%emt 0:00:00]} (51. Ke2 $16 Rh1 52. Rdd8) 51... Re1 $11 {[%emt 0:00:00]} 52. Kf2 {[%emt 0:00:00]} Rh1 {[%emt 0:00:00]} 53. Rdd8 {[%emt 0:00:00] And now Rg8+ would win.} Rh3 $1 {[%emt 0:00:00]} 54. Ke2 {[%emt 0:01:26]} Rb7 {[%emt 0:00:00]} 55. Rg8+ {[%emt 0:05:12]} Kf6 {[%emt 0:00:00]} 56. Ra3 {[%emt 0:00:42]} Ke7 {[%emt 0:00:00]} (56... Rb2+ $11 57. Kd3 Rb6) 57. Kd3 {[%emt 0:01:06]} (57. Rh8 $16) 57... Rg3 {[%emt 0:00:09]} (57... Kf6 $14) 58. Raa8 {[%emt 0:01:10]} ({White should try} 58. Kd4 $16) 58... Rh3 $2 {[%emt 0:00:41]} (58... Rb3+ $2 59. Kd4 $18) (58... Kf6 $1 $11) 59. Rae8+ {[%emt 0:00:33]} (59. Kd4 $1 $18 {is the precise move to win.}) 59... Kf6 $16 {[%emt 0:00:07]} 60. Rh8 {[%emt 0:00:09]} Rh4 $2 {[%emt 0:04:34]} (60... Rb3+ $16 {was necessary.} 61. Kd4 Rh4) 61. g5+ $1 $18 {[%emt 0:00:21]} Kf5 {[%emt 0:01:05]} (61... hxg5 $2 62. fxg5+ Kxg5 63. Reg8+ Kf5 64. Rxh4 $18) 62. gxh6 $2 {[%emt 0:01:17]} ({Resist} 62. Rxh6 $6 Rxh6 63. gxh6 Kg6 64. Rg8+ Kxh6 $16) (62. Re5+ $1 $18 Kg6 63. Rg8+ Kh7 64. Ree8) 62... f6 $1 $11 {[%emt 0:00:38]} 63. Rd8 {[%emt 0:01:03]} Ra7 {[%emt 0:02:23]} 64. Rd5+ {[%emt 0:00:35]} Kg6 {[%emt 0:00:36]} ({Black should play} 64... Kg4 $1 $14) 65. Rd6 {[%emt 0:00:32]} (65. Rg8+ $1 $16 Kxh6 66. Rd6) 65... Rf7 {[%emt 0:00:34] [#]} (65... Kf5 $1 $14) 66. Rdd8 {[%emt 0:00:22]} (66. Rg8+ $1 $18 Kh7 67. Rdd8 Rxh6 68. Rh8+ Kg6 69. f5+ Kg5 70. Rdg8+ Kh5 71. e4) 66... Ra7 $16 {[%emt 0:01:01] [#]} 67. Rdg8+ {[%emt 0:00:02]} (67. Ke4 $1 $16 {Rdg8+ is the strong threat.} Re7+ 68. Kf3) 67... Kf5 $11 {[%emt 0:00:03]} 68. Rg3 {[%emt 0:00:58]} Rh1 {[%emt 0:00:34]} 69. Kc4 {[%emt 0:00:42]} Rc7+ {[%emt 0:00:19]} 70. Kd3 {[%emt 0:00:03]} Ra7 {[%emt 0:00:14]} 71. Rf8 {[%emt 0:00:46] Hoping for Rg5+.} Ra3+ {[%emt 0:00:52]} 72. Kc4 {[%emt 0:00:26]} Rxh6 $2 {[%emt 0:00:15][%mdl 8192]} (72... Ra6 $11) 73. e4+ $1 {[%emt 0:00:08] Weighted Error Value: White=0.20 (precise) /Black=0.21 (precise)} 1-0

[Event "37th ECCC 2022"]
[Site "Mayrhofen"]
[Date "2022.10.06"]
[Round "4.30"]
[White "Korpa, Bence"]
[Black "Tregubov, Pavel V."]
[Result "0-1"]
[ECO "E20"]
[WhiteElo "2496"]
[BlackElo "2548"]
[Annotator "TA"]
[PlyCount "70"]
[EventDate "2022.10.03"]
[EventType "team-tourn"]
[EventCountry "AUT"]
[SourceTitle "playchess.com"]
[Source "ChessBase"]
[SourceQuality "1"]
[TimeControl "40/5400+30:1800+30"]

{[%evp 13,70,-27,-34,-45,39,39,45,0,0,0,0,0,0,0,0,0,0,0,0,0,57,14,36,0,16,-38,-25,-75,-80,-75,-70,-117,-123,-295,-284,-276,-267,-248,-261,-245,-247,-276,-182,-210,-184,-385,-381,-372,-378,-364,-358,-440,-465,-465,-472,-444,-446,-431,-402]} 1. d4 {[%emt 0:00:05]} Nf6 {[%emt 0:00:16]} 2. c4 {[%emt 0:00:10]} e6 {[%emt 0:00:10]} 3. Nc3 {[%emt 0:00:12]} Bb4 {[%emt 0:00:09]} 4. f3 {[%emt 0:00:20]} c5 {[%emt 0:00:55]} 5. a3 {[%emt 0:00:11]} Bxc3+ {[%emt 0:04:45]} 6. bxc3 {[%emt 0:00:08]} Nc6 {[%emt 0:01:31]} 7. e4 {[%emt 0:00:26]} d6 {[%emt 0:01:00]} 8. Ne2 {[%emt 0:00:40] E24: Nimzo-Indian: Sämisch: Unusual Black 5th moves and 5...c5 sidelines.} e5 {[%emt 0:12:49]} (8... b6 $15) 9. d5 $14 {[%emt 0:10:48]} Ne7 {[%emt 0:02:36] [#]} 10. g4 $146 {[%emt 0:10:16] White is slightly better.} ({Predecessor:} 10. h4 h5 11. Ng3 Bd7 12. Bd2 Qc7 13. a4 O-O-O 14. a5 Rdf8 15. Bd3 Kb8 16. Bc2 {½-½ (36) Yu,Y (2764)-Wojtaszek,R (2749) Shenzhen 2018}) 10... Ng6 {[%emt 0:15:44]} 11. h4 {[%emt 0:00:53]} h5 $1 {[%emt 0:01:21]} 12. g5 {[%emt 0:03:18]} Ng8 {[%emt 0:00:22]} 13. Ng3 {[%emt 0:21:20] Against f5} N8e7 {[%emt 0:00:08] Against Nf5} 14. Bd3 {[%emt 0:00:12]} Bd7 {[%emt 0:14:52]} 15. Rb1 {[%emt 0:07:18]} Qc7 {[%emt 0:01:57]} 16. Nf5 {[%emt 0:08:31]} Kf8 {[%emt 0:01:41]} (16... Nxf5 $1 $11 17. exf5 Ne7) 17. Ng3 {[%emt 0:01:53]} (17. Kf2 {with more complications.} Bc8 18. Ng3 b6 19. Be3) 17... Kg8 {[%emt 0:09:10]} 18. Qb3 {[%emt 0:02:35]} b6 {[%emt 0:01:04]} 19. Ne2 {[%emt 0:07:30] Prevents Nf4.} (19. Nf5 $11) 19... Rf8 $15 {[%emt 0:13:56]} 20. Be3 {[%emt 0:03:10]} (20. a4 $11 {keeps the balance.}) 20... f5 $17 {[%emt 0:01:28]} 21. gxf6 {[%emt 0:00:17]} Rxf6 {[%emt 0:00:14]} 22. Kd2 {[%emt 0:00:13]} ({White should play} 22. Kf2 $15) 22... Rxf3 {[%emt 0:01:21]} 23. Rbf1 $2 {[%emt 0:03:41] [#] This costs White the game.} (23. Bg5 $17 {might work better.}) 23... Nxh4 $1 $19 {[%emt 0:05:06][%mdl 512]} 24. Bg5 {[%emt 0:03:25]} Rxf1 {[%emt 0:01:39]} 25. Rxf1 {[%emt 0:00:06]} Nhg6 {[%emt 0:01:16]} 26. Ng3 {[%emt 0:00:25]} Bh3 {[%emt 0:02:24]} 27. Rg1 {[%emt 0:02:01]} Qd7 {[%emt 0:00:50]} 28. Qd1 {[%emt 0:09:34]} Bg4 {[%emt 0:00:58]} 29. Qf1 {[%emt 0:00:40] [#]} (29. Be2 {only move.}) 29... Nf4 {[%emt 0:00:19]} 30. Bxf4 {[%emt 0:04:13]} exf4 {[%emt 0:00:05]} 31. Qxf4 {[%emt 0:00:09]} Ng6 {[%emt 0:00:23] Against e5} 32. Qe3 {[%emt 0:00:48]} Ne5 {[%emt 0:00:39] Black is clearly winning.} 33. Be2 {[%emt 0:00:50]} h4 {[%emt 0:00:29]} 34. Nf5 {[%emt 0:00:16]} Bxf5 {[%emt 0:00:23]} 35. exf5 {[%emt 0:00:07]} Qxf5 {[%emt 0:00:30] Weighted Error Value: White=0.33/Black=0.13 (very precise)} 0-1

[Event "37th ECCC 2022"]
[Site "Mayrhofen"]
[Date "2022.10.06"]
[Round "4.31"]
[White "Blomqvist, Erik"]
[Black "Mamedov, Rauf"]
[Result "1/2-1/2"]
[ECO "B34"]
[WhiteElo "2526"]
[BlackElo "2646"]
[Annotator "TA"]
[PlyCount "81"]
[EventDate "2022.10.03"]
[EventType "team-tourn"]
[EventCountry "AUT"]
[SourceTitle "playchess.com"]
[Source "ChessBase"]
[SourceQuality "1"]
[TimeControl "40/5400+30:1800+30"]

{[%evp 20,81,17,14,18,25,30,29,34,33,34,30,39,22,24,22,20,0,0,0,0,15,87,20,23,0,0,-11,56,51,52,48,65,62,52,0,0,0,0,0,0,0,0,0,0,0,0,0,0,0,0,0,0,0,0,0,0,0,0,0,0,0,0,0]} 1. e4 {[%emt 0:00:04] Nielsen,Peter Heine} c5 {[%emt 0:00:06]} 2. Nf3 {[%emt 0:00:07]} Nc6 {[%emt 0:00:06]} 3. d4 {[%emt 0:00:07]} cxd4 {[%emt 0:00:03]} 4. Nxd4 {[%emt 0:00:06]} Nf6 {[%emt 0:00:02]} 5. Nc3 {[%emt 0:00:11]} e5 {[%emt 0:00:14]} 6. Ndb5 {[%emt 0:00:12]} d6 {[%emt 0:00:02]} 7. Nd5 {[%emt 0:00:16]} Nxd5 {[%emt 0:00:05]} 8. exd5 {[%emt 0:00:08]} Ne7 {[%emt 0:00:02]} 9. c4 {[%emt 0:00:49]} Ng6 {[%emt 0:00:04]} 10. Qa4 {[%emt 0:01:35]} Bd7 {[%emt 0:00:18]} 11. Qb4 {[%emt 0:00:14]} Bf5 {[%emt 0:00:06] B33: Sicilian: Pelikan and Sveshnikov Variations.} 12. h4 {[%emt 0:01:22]} h5 {[%emt 0:01:12]} 13. Bg5 {[%emt 0:00:43]} Qb8 {[%emt 0:00:04] White has an edge.} 14. g3 {[%emt 0:01:28]} a6 {[%emt 0:09:16]} 15. Nc3 {[%emt 0:00:29]} Qc7 {[%emt 0:01:25]} 16. Be2 {[%emt 0:07:29]} Be7 {[%emt 0:02:20]} 17. Be3 {[%emt 0:01:15]} e4 {[%emt 0:16:08] [#]} 18. Bb6 $146 {[%emt 0:08:33]} ({Predecessor:} 18. O-O O-O 19. Bxh5 Ne5 20. Be2 Qd7 21. Qa4 Qc8 22. c5 dxc5 23. Nxe4 {0-1 (39) Karjakin,S (2753)-Carlsen,M (2845) Shamkir 2019 CBM 190 [Nielsen,Peter Heine]}) 18... Qd7 {[%emt 0:03:14]} 19. Bd4 {[%emt 0:06:22]} O-O {[%emt 0:07:27]} 20. Bxh5 {[%emt 0:01:38]} b5 {[%emt 0:22:35]} (20... Bg4 $11 21. Bxg4 Qxg4) 21. cxb5 {[%emt 0:15:53] White is more active.} (21. Bxg6 $16 fxg6 22. cxb5) 21... Ne5 $11 {[%emt 0:01:11] [#] Threatens to win with ...Nd3+.} 22. Bxe5 {[%emt 0:10:15]} dxe5 {[%emt 0:00:11]} 23. Qb3 {[%emt 0:00:53]} e3 {[%emt 0:02:29]} (23... Bc5 $11) 24. fxe3 $14 {[%emt 0:02:11]} axb5 {[%emt 0:01:27]} 25. Qxb5 {[%emt 0:03:12]} Qxb5 {[%emt 0:09:56]} 26. Nxb5 {[%emt 0:00:10] aiming for d6.} Rfb8 $1 {[%emt 0:00:02]} 27. O-O {[%emt 0:19:23][%cal Bh1f1,Bf1f5,Bf5e5,Be5e6][%mdl 32]} (27. d6 $14 Bf8 28. O-O Rxb5 29. Rxf5) 27... Rxb5 $11 {[%emt 0:01:02] The position is equal.} 28. Rxf5 {[%emt 0:00:08]} g6 $1 {[%emt 0:00:03]} 29. Bxg6 {[%emt 0:01:51]} fxg6 {[%emt 0:00:36]} 30. Rxe5 {[%emt 0:00:05]} Bf8 {[%emt 0:08:50]} 31. Kg2 {[%emt 0:02:23]} Rxb2+ {[%emt 0:02:32]} 32. Kh3 {[%emt 0:01:06]} Raxa2 {[%emt 0:03:36]} 33. Rxa2 {[%emt 0:02:01]} Rxa2 {[%emt 0:00:20][%mdl 4096] Endgame KRB-KR} 34. Re6 {[%emt 0:04:20]} Kf7 {[%emt 0:00:14]} 35. Kg4 {[%emt 0:00:13]} Rd2 {[%emt 0:01:35]} 36. e4 {[%emt 0:02:07]} Rd3 {[%emt 0:00:07]} 37. Rc6 {[%emt 0:02:23]} Re3 {[%emt 0:01:46]} 38. Kf4 {[%emt 0:04:44]} Bh6+ {[%emt 0:00:25]} 39. Ke5 {[%emt 0:00:05]} Bg7+ {[%emt 0:00:04]} 40. Kf4 {[%emt 0:00:06]} Bh6+ {[%emt 0:00:04]} 41. Ke5 {[%emt 0:30:04] Weighted Error Value: White=0.09 (flawless) /Black=0.07 (flawless)} 1/2-1/2

[Event "37th ECCC 2022"]
[Site "Mayrhofen"]
[Date "2022.10.06"]
[Round "4.32"]
[White "Shevchenko, Kirill"]
[Black "Seo, Jung Min"]
[Result "1-0"]
[ECO "C65"]
[WhiteElo "2645"]
[BlackElo "2520"]
[Annotator "TA"]
[PlyCount "89"]
[EventDate "2022.10.03"]
[EventType "team-tourn"]
[EventCountry "AUT"]
[SourceTitle "playchess.com"]
[Source "ChessBase"]
[SourceQuality "1"]
[TimeControl "40/5400+30:1800+30"]

{[%evp 9,89,20,14,11,10,16,8,8,0,0,0,0,-3,-2,-1,-12,13,0,23,24,22,33,56,44,60,56,62,64,57,55,79,52,85,73,70,29,85,73,105,102,125,144,110,40,40,32,43,25,121,110,92,57,86,70,200,201,197,191,237,233,205,122,191,104,235,142,252,243,429,422,416,410,386,381,393,380,1543,1398,29987,29988,29986,29987]} 1. e4 {[%emt 0:00:03] CB} e5 {[%emt 0:00:03]} 2. Nf3 {[%emt 0:00:03]} Nc6 {[%emt 0:00:04]} 3. Bb5 {[%emt 0:00:04]} Nf6 {[%emt 0:00:04]} 4. d3 {[%emt 0:00:27]} Bc5 {[%emt 0:00:14]} 5. Bxc6 {[%emt 0:00:30]} dxc6 {[%emt 0:00:08]} 6. O-O {[%emt 0:00:04] C65: Ruy Lopez: Berlin Defence (3...Nf6), unusual lines and 4 0-0 Bc5.} Nd7 {[%emt 0:06:05]} 7. Nbd2 {[%emt 0:01:16] 7.c3 gains popularity.} O-O {[%emt 0:00:54]} 8. Nc4 {[%emt 0:00:09] The position is equal.} Re8 {[%emt 0:02:29]} 9. Kh1 {[%emt 0:00:01]} a5 {[%emt 0:06:05]} 10. a4 {[%emt 0:08:03]} b6 {[%emt 0:02:19]} 11. g3 {[%emt 0:11:21] [#]} Qe7 $146 {[%emt 0:07:29]} ({Predecessor:} 11... Nf8 12. Ncxe5 f6 13. d4 Bd6 14. Nxc6 Qd7 15. d5 Rxe4 16. Nd2 Re8 17. Nc4 Ba6 {½-½ (60) Caruana,F (2772)-Karjakin,S (2786) Zug 2013 CBM 154 [CB]}) 12. Be3 {[%emt 0:23:04]} (12. Kg2 {feels hotter.} Qe6 13. Ng5 Qg6 14. Nf3) 12... Bxe3 {[%emt 0:05:08]} (12... f5 {seems wilder.} 13. exf5 e4 14. Nd4 Bxd4 15. Bxd4 Qf7) 13. Nxe3 {[%emt 0:00:29]} Nf6 {[%emt 0:11:46]} 14. Nh4 {[%emt 0:02:01]} g6 {[%emt 0:03:05]} 15. Nhg2 {[%emt 0:08:34]} Rd8 {[%emt 0:15:51]} 16. Qe2 {[%emt 0:08:49]} Ba6 {[%emt 0:07:43]} 17. f3 {[%emt 0:00:38]} Re8 {[%emt 0:00:48]} 18. Qf2 {[%emt 0:03:19]} Rad8 {[%emt 0:00:51]} 19. b3 {[%emt 0:06:57]} Rd6 {[%emt 0:08:08]} 20. Rg1 {[%emt 0:04:14]} Red8 {[%emt 0:02:36]} 21. Nh4 {[%emt 0:05:33]} Qe6 {[%emt 0:04:24][%cal Oa6d3]} 22. Rad1 {[%emt 0:06:00]} Kh8 {[%emt 0:06:47]} (22... Bxd3 $11 23. cxd3 (23. Rxd3 Rxd3 24. cxd3 Qxb3 $14) 23... Qxb3) 23. f4 $16 {[%emt 0:01:21]} Bxd3 {[%emt 0:06:42]} 24. cxd3 {[%emt 0:00:19]} Rxd3 {[%emt 0:00:04]} 25. Rxd3 {[%emt 0:05:52]} Rxd3 {[%emt 0:00:04] [#]} 26. fxe5 {[%emt 0:00:07]} ({White should play} 26. f5 $1 $16 {[%cal Rf5e6]} gxf5 27. Nhxf5 (27. exf5 Qxb3 28. Re1 Qxa4 $17)) 26... Qxe5 $14 {[%emt 0:00:33]} 27. Rf1 {[%emt 0:00:10]} Qxe4+ {[%emt 0:00:54]} 28. Nhg2 {[%emt 0:00:06]} (28. Kg1 $5 {[%cal Rf2f6]} Qxe3 29. Qxe3 Rxe3 30. Rxf6 $14) 28... Rd6 {[%emt 0:00:20]} (28... Ng8 $1 $11 {remains equal.}) 29. Nc4 {[%emt 0:01:58]} Re6 {[%emt 0:00:03]} 30. Qb2 {[%emt 0:01:01]} Kg7 {[%emt 0:02:25]} 31. Kg1 $36 {[%emt 0:00:01][%mdl 2048] Black is under pressure.} c5 {[%emt 0:00:26]} (31... b5 $1 $14 32. axb5 (32. Nxa5 bxa4 33. bxa4 Qxa4 $16) 32... cxb5 33. Nxa5 c5) 32. Nf4 $18 {[%emt 0:00:30]} Rc6 {[%emt 0:00:06]} 33. Rd1 {[%emt 0:00:46]} Qe7 {[%emt 0:01:31]} (33... h6 $142 34. Qa1 h5) 34. Qe5 {[%emt 0:01:54]} Kf8 {[%emt 0:00:28]} 35. Rd2 {[%emt 0:01:14]} ({Better is} 35. Qc3 $18) 35... h6 {[%emt 0:00:47] [#]} (35... Qxe5 $16 36. Nxe5 Rd6 37. Rxd6 cxd6) 36. h4 {[%emt 0:00:35]} (36. Qa1 $1 $18) 36... h5 {[%emt 0:00:31]} (36... Qxe5 $16 37. Nxe5 Rd6 38. Rxd6 cxd6) 37. Rd1 {[%emt 0:00:20] Threatens to win with Qc3.} Qe8 {[%emt 0:00:29]} (37... Qxe5 $16 38. Nxe5 Rd6 39. Rxd6 cxd6) 38. Qc3 {[%emt 0:00:26] aiming for Re1.} Kg7 $2 {[%emt 0:00:25]} (38... Kg8 {keeps fighting.} 39. Re1 Qd8) 39. Ne5 {[%emt 0:00:48] Pair of Knights!} Rd6 {[%emt 0:00:04]} 40. Rxd6 {[%emt 0:00:10]} cxd6 {[%emt 0:00:03]} 41. Nc4 {[%emt 0:30:13][%csl LRb6,LRd6][%cal Be5c4,Bc4d6,Bd6f5,Bf5e7][%mdl 32]} Qe4 {[%emt 0:30:59]} 42. Nxd6 {[%emt 0:00:00]} Qe7 {[%emt 0:00:00] [#]} (42... Qd4+ 43. Qxd4 cxd4) 43. Nxh5+ $1 {[%emt 0:00:00][%mdl 512]} gxh5 {[%emt 0:00:00]} (43... Kf8 44. Qxf6) 44. Nf5+ {[%emt 0:00:00]} Kf8 {[%emt 0:00:00]} 45. Nxe7 {[%emt 0:00:00] Weighted Error Value: White=0.16 (very precise) /Black=0.57} 1-0

[Event "37th ECCC 2022"]
[Site "Mayrhofen"]
[Date "2022.10.06"]
[Round "4.33"]
[White "Trost, Edvin"]
[Black "Iskandarov, Misratdin"]
[Result "1/2-1/2"]
[ECO "E62"]
[WhiteElo "2347"]
[BlackElo "2601"]
[Annotator "TA"]
[PlyCount "105"]
[EventDate "2022.10.03"]
[EventType "team-tourn"]
[EventCountry "AUT"]
[SourceTitle "playchess.com"]
[Source "ChessBase"]
[SourceQuality "1"]
[TimeControl "40/5400+30:1800+30"]

{[%evp 13,105,25,16,35,48,53,28,39,55,59,73,73,88,85,85,81,85,81,89,89,112,100,109,95,103,95,98,112,98,103,105,53,54,54,52,39,62,41,47,11,13,16,32,41,41,41,45,45,44,46,47,0,0,0,43,43,44,44,44,44,44,44,44,44,44,44,44,44,44,30,41,18,26,19,20,19,19,2,2,2,14,0,0,25,33,29,46,0,0,0,0,0,0,0]} 1. d4 {[%emt 0:00:04]} Nf6 {[%emt 0:00:09]} 2. c4 {[%emt 0:00:13]} g6 {[%emt 0:00:16]} 3. g3 {[%emt 0:00:26]} Bg7 {[%emt 0:00:14]} 4. Bg2 {[%emt 0:00:09]} O-O {[%emt 0:03:19]} 5. Nc3 {[%emt 0:00:21]} d6 {[%emt 0:00:16]} 6. Nf3 {[%emt 0:00:18]} c6 {[%emt 0:00:34]} 7. O-O {[%emt 0:00:58]} Bf5 {[%emt 0:00:04]} 8. Ng5 {[%emt 0:02:38] E62: King's Indian: Fianchetto: 6...c6 and Panno Variation (6...Nc6) without ...a6.} h6 {[%emt 0:03:42]} 9. e4 {[%emt 0:00:11]} Bg4 {[%emt 0:00:06]} 10. f3 {[%emt 0:02:26] White has an edge.} Bd7 {[%emt 0:02:05]} 11. Nh3 {[%emt 0:00:09]} e5 {[%emt 0:00:52]} 12. Be3 {[%emt 0:03:48]} Na6 {[%emt 0:06:12]} 13. Qd2 {[%emt 0:03:29]} Kh7 {[%emt 0:01:37]} 14. Nf2 {[%emt 0:01:41]} Qe7 {[%emt 0:06:35]} 15. Rfd1 {[%emt 0:06:28] [#]} exd4 $146 {[%emt 0:05:58]} ({Predecessor:} 15... Rfd8 16. d5 c5 17. Rf1 Nh5 18. Nd3 f5 19. Rae1 Nf6 20. f4 Ng4 21. fxe5 dxe5 {1-0 (60) Vakhidov,J (2542)-Vogt,L (2402) St Clement Bay 2018}) 16. Bxd4 {[%emt 0:00:24]} (16. Qxd4 $6 {[#]} Ng4 $1 17. Qd3 (17. Qxd6 Qxd6 18. Rxd6 Nxe3 $17) 17... Nxe3 18. Qxe3 Be6 $11) 16... Be6 {[%emt 0:00:06]} 17. b3 {[%emt 0:02:36]} Rfd8 {[%emt 0:00:38]} 18. Rac1 {[%emt 0:10:09]} Nc5 {[%emt 0:02:24]} 19. Qe3 {[%emt 0:10:04] e5 is the strong threat.} Ncd7 {[%emt 0:15:24]} 20. Qe2 {[%emt 0:05:17]} Re8 {[%emt 0:12:15]} 21. Rc2 {[%emt 0:12:09]} a6 {[%emt 0:01:27]} 22. Nd3 {[%emt 0:05:22]} (22. f4 $16) 22... b5 $14 {[%emt 0:05:23]} 23. Nf4 {[%emt 0:01:00]} bxc4 {[%emt 0:00:57]} 24. bxc4 {[%emt 0:00:28]} Rab8 {[%emt 0:01:30]} 25. Nxe6 {[%emt 0:11:18] White has more active pieces.} Qxe6 {[%emt 0:00:07]} 26. Rcd2 {[%emt 0:00:33]} Rb4 {[%emt 0:06:08]} 27. Bf1 {[%emt 0:00:05]} Ne5 {[%emt 0:08:04][%cal Re5c4]} 28. c5 {[%emt 0:01:32]} d5 {[%emt 0:03:11]} 29. exd5 {[%emt 0:02:27]} Qf5 {[%emt 0:00:25]} 30. Bxe5 {[%emt 0:01:38]} ({Don't play} 30. f4 Nc4 31. Be5 Nxd2 32. Qxd2 Rxe5 33. fxe5 Qxe5 $15) 30... Rxe5 {[%emt 0:00:06]} 31. Qd3 {[%emt 0:00:35]} Qh5 {[%emt 0:10:12]} 32. Re2 {[%emt 0:03:10]} (32. a3 $14 Rb3 33. Qc4 (33. dxc6 $2 Rxc5 34. Rc2 Rxc6 $19) 33... Rxa3 34. d6 (34. dxc6 $2 Rxc5 35. Qxf7 Rcxc3 $19)) 32... Nxd5 $11 {[%emt 0:01:19]} 33. Rxe5 {[%emt 0:00:53]} Qxe5 {[%emt 0:00:06]} 34. Nxd5 {[%emt 0:00:09]} Rd4 {[%emt 0:01:34]} 35. Qxd4 {[%emt 0:00:02]} Qxd4+ {[%emt 0:00:13]} 36. Rxd4 {[%emt 0:00:00]} Bxd4+ {[%emt 0:00:12]} 37. Kg2 {[%emt 0:00:01]} cxd5 $14 {[%emt 0:00:11][%mdl 4096] Endgame KB-KB} 38. c6 {[%emt 0:00:00]} Bb6 {[%emt 0:00:24]} 39. Bxa6 {[%emt 0:00:04]} Kg7 {[%emt 0:00:15]} 40. f4 {[%emt 0:00:34]} Kf6 {[%emt 0:00:14]} 41. Kf3 {[%emt 0:30:09]} Ke6 {[%emt 0:30:48]} 42. Bc8+ {[%emt 0:00:36]} Kd6 {[%emt 0:00:06]} 43. Bd7 {[%emt 0:00:04]} Ba5 {[%emt 0:02:11]} 44. a4 {[%emt 0:00:32]} Bb6 {[%emt 0:00:05]} 45. f5 {[%emt 0:00:47]} gxf5 {[%emt 0:02:05]} 46. Kf4 {[%emt 0:00:05]} d4 {[%emt 0:00:08]} 47. Kxf5 {[%emt 0:00:37]} d3 {[%emt 0:00:08] [#] Hoping for ...d2.} 48. Kf6 {[%emt 0:00:44]} d2 {[%emt 0:00:06]} 49. Bg4 {[%emt 0:00:03] Strongly threatening Bf3.} Bg1 {[%emt 0:00:16]} 50. Kxf7 {[%emt 0:00:40]} (50. h3 $14 {was preferrable.}) 50... Bxh2 $11 {[%emt 0:00:06] The position is equal.} 51. Kg6 {[%emt 0:00:09]} Bxg3 {[%emt 0:00:07]} 52. Kxh6 {[%emt 0:00:03]} Kxc6 {[%emt 0:00:06]} 53. Kg5 {[%emt 0:00:04] Weighted Error Value: White=0.08 (flawless) /Black=0.06 (flawless)} 1/2-1/2